bitfinex/quotes_SOLUSD_20260201
["timestamp","ask_amount","ask_price","bid_price","bid_amount"]
[1769942282775,1.09462233,104.79,104.75,18.30444156]
[1769942283393,43.24746339,104.81,104.76,18.30387112]
[1769942283566,1.09462233,104.81,104.77,18.30317966]
[1769942283767,10.63487263,104.82,104.78,8.75849243]
[1769942284085,9.85311476,104.8,104.76,8.75849243]
[1769942284988,9.85311476,104.8,104.75,9.45441085]
[1769942285176,9.85311476,104.78,104.74,18.30553344]
[1769942285578,9.85311476,104.8,104.75,18.3048385]
[1769942285778,9.85311476,104.8,104.76,9.54555595]
[1769942285979,9.85311476,104.8,104.76,8.75849243]
[1769942286177,8.75849243,104.8,104.76,9.45464486]
[1769942286386,9.85311476,104.78,104.72,0.69615243]
[1769942286702,9.85311476,104.78,104.73,8.75849243]
[1769942286994,9.85311476,104.78,104.74,18.30590818]
[1769942287175,9.85311476,104.78,104.74,8.75849243]
[1769942287372,8.75849243,104.78,104.73,19.00276032]
[1769942287578,60.18703536,104.81,104.72,18.30752227]
[1769942287579,9.86201308,104.77,104.72,18.30752227]
[1769942287779,9.86201308,104.77,104.73,18.30677339]
[1769942288089,1.10352065,104.75,104.71,18.30867865]
[1769942288290,9.86201308,104.74,104.7,9.55095993]
[1769942288492,9.86201308,104.74,104.7,18.30945236]
[1769942288793,19.40772464,104.76,104.72,8.75849243]
[1769942288989,1.10352065,104.78,104.74,8.75849243]
[1769942289180,1.10352065,104.77,104.74,8.75849243]
[1769942290295,1.10352065,104.81,104.76,8.75849243]
[1769942290492,1.10352065,104.8,104.77,8.75849243]
[1769942290698,1.10352065,104.8,104.76,8.75849243]
[1769942290993,1.10352065,104.79,104.75,8.75849243]
[1769942291172,1.10352065,104.79,104.76,8.75849243]
[1769942291371,1.10352065,104.78,104.74,9.54717064]
[1769942291596,1.10352065,104.78,104.74,8.75849243]
[1769942292104,1.10352065,104.77,104.73,18.30672705]
[1769942292475,1.10352065,104.77,104.74,8.75849243]
[1769942292681,1.10352065,104.77,104.73,18.30672705]
[1769942292896,1.10352065,104.77,104.74,8.75849243]
[1769942293393,1.10352065,104.79,104.75,8.75849243]
[1769942293599,1.10352065,104.79,104.76,8.75849243]
[1769942293898,10.64484674,104.81,104.78,8.75849243]
[1769942294101,1.10352065,104.8,104.78,8.75849243]
[1769942294901,1.10352065,104.79,104.75,9.54649438]
[1769942295288,1.10352065,104.79,104.75,18.30498681]
[1769942295878,1.10352065,104.79,104.75,8.75849243]
[1769942296078,1.10352065,104.79,104.75,18.30436357]
[1769942296291,1.10352065,104.77,104.74,8.75849243]
[1769942296500,10.64774786,104.78,104.75,8.75849243]
[1769942297010,1.10352065,104.78,104.75,8.75849243]
[1769942297602,1.10352065,104.77,104.73,9.54836245]
[1769942297800,1.10352065,104.77,104.73,18.30685488]
[1769942298000,1.10352065,104.77,104.74,8.75849243]
[1769942298199,1.10352065,104.76,104.72,9.54901329]
[1769942298495,1.10352065,104.76,104.74,8.75849243]
[1769942298801,1.10352065,104.74,104.69,23.87865764]
[1769942298982,9.86201308,104.71,104.66,18.31324114]
[1769942299318,1.10352065,104.72,104.66,34.13926802]
[1769942299480,1.10352065,104.71,104.67,8.75849243]
[1769942299803,1.10352065,104.71,104.63,0.1]
[1769942300004,9.86201308,104.68,104.63,8.85849243]
[1769942300207,1.10352065,104.7,104.66,8.75849243]
[1769942300499,1.10352065,104.69,104.65,8.75849243]
[1769942300716,1.10352065,104.68,104.64,8.75849243]
[1769942301083,10.65462017,104.7,104.64,1.00442131]
[1769942301281,10.65462017,104.7,104.66,8.75849243]
[1769942301481,1.10352065,104.68,104.64,8.75849243]
[1769942301993,1.10352065,104.67,104.63,8.85849243]
[1769942302206,8.75849243,104.68,104.65,8.75849243]
[1769942302207,1.10352065,104.68,104.65,8.75849243]
[1769942302396,1.10352065,104.72,104.67,8.75849243]
[1769942302595,1.10352065,104.72,104.67,1.00442131]
[1769942302803,1.10352065,104.72,104.7,8.75849243]
[1769942303108,1.10352065,104.74,104.71,8.75849243]
[1769942303318,9.54672021,104.75,104.72,8.75849243]
[1769942303607,1.10352065,104.75,104.72,8.75849243]
[1769942304184,1.10352065,104.75,104.71,8.75849243]
[1769942304478,1.10352065,104.74,104.71,8.75849243]
[1769942304880,1.10352065,104.73,104.69,8.75849243]
[1769942305084,19.40891506,104.75,104.7,8.75849243]
[1769942305285,1.10352065,104.75,104.72,8.75849243]
[1769942305487,1.10352065,104.72,104.65,1.00442131]
[1769942305698,8.75849243,104.73,104.7,8.75849243]
[1769942305699,1.10352065,104.73,104.7,8.75849243]
[1769942305904,1.10352065,104.75,104.71,8.75849243]
[1769942306101,1.10352065,104.75,104.72,8.75849243]
[1769942306299,1.10352065,104.74,104.68,1.00442131]
[1769942306494,1.10352065,104.72,104.66,24.89056842]
[1769942306785,1.10352065,104.72,104.69,8.75849243]
[1769942306992,1.10352065,104.74,104.71,8.75849243]
[1769942307199,1.10352065,104.75,104.72,8.75849243]
[1769942307586,1.10352065,104.74,104.71,8.75849243]
[1769942307783,1.10352065,104.73,104.68,10.55706198]
[1769942308007,1.10352065,104.73,104.69,8.75849243]
[1769942308395,1.10352065,104.72,104.68,18.31116214]
[1769942308707,10.65106754,104.74,104.71,8.75849243]
[1769942309002,10.65101432,104.74,104.7,8.75849243]
[1769942309201,1.10352065,104.73,104.69,8.75849243]
[1769942309410,9.86201308,104.73,104.68,18.31116214]
[1769942309620,1.10352065,104.73,104.7,8.75849243]
[1769942310098,1.10352065,104.73,104.67,9.55359632]
[1769942310407,1.10352065,104.71,104.68,18.31111882]
[1769942310604,8.75849243,104.73,104.69,8.75849243]
[1769942310605,1.10352065,104.72,104.69,8.75849243]
[1769942310915,1.10352065,104.72,104.7,8.75849243]
[1769942311093,1.10352065,104.74,104.71,8.75849243]
[1769942311407,10.65106132,104.74,104.7,8.75849243]
[1769942311609,1.10352065,104.73,104.7,8.75849243]
[1769942312028,1.10352065,104.73,104.69,8.75849243]
[1769942312198,10.65024737,104.75,104.71,8.75849243]
[1769942313405,1.10352065,104.75,104.72,8.75849243]
[1769942313706,10.64854219,104.77,104.73,8.75849243]
[1769942314206,1.10352065,104.77,104.74,8.75849243]
[1769942314507,10.64827121,104.77,104.74,8.75849243]
[1769942315008,19.40676364,104.77,104.72,10.55335269]
[1769942315200,10.64827121,104.77,104.74,8.75849243]
[1769942315405,1.10352065,104.77,104.74,18.30583091]
[1769942315613,1.10352065,104.77,104.75,8.76196031]
[1769942315907,18.30543696,104.79,104.76,8.76196031]
[1769942315908,10.6469973,104.79,104.76,8.76196031]
[1769942316113,10.6469973,104.79,104.75,8.76196031]
[1769942316586,19.40895761,104.79,104.75,8.76196031]
[1769942317391,10.6469973,104.79,104.75,8.76196031]
[1769942317595,1.07720174,104.81,104.77,8.76196031]
[1769942318011,10.61670067,104.83,104.79,8.76196031]
[1769942318210,9.83916205,104.82,104.77,8.76196031]
[1769942318414,1.07720174,104.82,104.78,8.76196031]
[1769942318792,1.07720174,104.82,104.79,8.76196031]
[1769942318993,10.615845,104.84,104.81,8.76196031]
[1769942319198,10.615845,104.84,104.8,8.76196031]
[1769942319800,1.07720174,104.83,104.79,8.76196031]
[1769942320112,1.07720174,104.83,104.8,8.76196031]
[1769942320313,24.0444533,104.85,104.8,8.76196031]
[1769942320314,19.57670584,104.85,104.81,8.76196031]
[1769942320610,1.27720174,104.85,104.82,8.76196031]
[1769942320811,0.2,104.85,104.84,8.76196031]
[1769942321109,1.07720174,104.87,104.84,8.76196031]
[1769942321307,1.07720174,104.87,104.83,8.76196031]
[1769942321308,10.61305651,104.87,104.83,8.76196031]
[1769942321706,1.07720174,104.89,104.86,8.76196031]
[1769942322218,1.07720174,104.88,104.85,8.76196031]
[1769942322392,1.07720174,104.86,104.8,1.03918983]
[1769942322598,9.83916205,104.84,104.8,8.76196031]
[1769942322814,1.07720174,104.83,104.79,8.76196031]
[1769942323317,1.07720174,104.83,104.78,10.58239075]
[1769942323318,1.07720174,104.82,104.78,8.76196031]
[1769942323516,1.07720174,104.82,104.78,9.80115014]
[1769942323717,1.07720174,104.82,104.79,8.76196031]
[1769942324117,10.61737301,104.82,104.78,8.76196031]
[1769942324819,10.61737301,104.82,104.78,18.30573155]
[1769942325521,9.80510177,104.84,104.79,8.76196031]
[1769942325821,1.04314146,104.83,104.79,8.76196031]
[1769942326327,10.58077236,104.85,104.81,8.76196031]
[1769942326515,8.76196031,104.86,104.81,9.85046193]
[1769942326708,8.76196031,104.87,104.82,9.85046193]
[1769942326905,8.76196031,104.86,104.82,9.85046193]
[1769942327828,42.13854953,104.87,104.82,9.85046193]
[1769942328128,8.76196031,104.86,104.81,9.85046193]
[1769942328531,8.76196031,104.86,104.8,9.54162488]
[1769942328532,1.04314146,104.84,104.8,18.30358519]
[1769942329224,1.04314146,104.84,104.81,8.76196031]
[1769942329402,1.04314146,104.85,104.81,8.76196031]
[1769942329920,19.34294157,104.85,104.81,8.76196031]
[1769942330122,19.34294157,104.85,104.8,19.39208681]
[1769942330318,19.34294157,104.85,104.81,8.76196031]
[1769942330515,10.58098126,104.85,104.81,8.76196031]
[1769942331718,10.58098126,104.85,104.82,8.76196031]
[1769942331925,1.04314146,104.84,104.81,8.76196031]
[1769942332431,9.80510177,104.82,104.77,1.08850162]
[1769942332723,9.80510177,104.82,104.78,9.85046193]
[1769942333136,9.69207351,104.82,104.78,9.85046193]
[1769942333431,9.54107432,104.81,104.77,9.54417053]
[1769942333622,18.30303463,104.81,104.77,10.63267215]
[1769942333827,9.54107432,104.81,104.77,19.39463246]
[1769942334212,8.76196031,104.82,104.77,19.39463246]
[1769942334533,18.3024876,104.82,104.77,19.39463246]
[1769942334704,9.54052729,104.82,104.77,19.39463246]
[1769942334906,18.3024876,104.82,104.77,19.39463246]
[1769942335108,1.04314146,104.81,104.77,19.39463246]
[1769942336308,1.04314146,104.81,104.78,8.76196031]
[1769942337124,1.04314146,104.81,104.77,10.63267215]
[1769942337335,1.04314146,104.81,104.77,19.39463246]
[1769942337915,1.04314146,104.81,104.78,8.76196031]
[1769942338115,33.65039818,104.85,104.8,9.85046193]
[1769942338328,1.04314146,104.85,104.82,8.76196031]
[1769942338526,1.04314146,104.85,104.81,1.08850162]
[1769942338724,1.04314146,104.84,104.8,8.76196031]
[1769942338928,1.04314146,104.83,104.79,9.85046193]
[1769942339132,9.80510177,104.83,104.79,1.08850162]
[1769942339312,1.04314146,104.83,104.79,9.85046193]
[1769942340242,1.04314146,104.82,104.78,9.85046193]
[1769942340416,1.04314146,104.82,104.79,9.54288836]
[1769942340612,1.04314146,104.82,104.78,19.39401191]
[1769942340940,10.5826331,104.83,104.8,8.76196031]
[1769942341141,9.53875686,104.84,104.8,9.85046193]
[1769942341312,1.04314146,104.85,104.82,8.76196031]
[1769942341821,1.04314146,104.83,104.79,8.76196031]
[1769942342013,9.80510177,104.83,104.78,19.39374223]
[1769942342213,10.5825962,104.83,104.79,18.30473989]
[1769942342412,1.04314146,104.84,104.81,8.76196031]
[1769942343028,24.88331349,104.87,104.82,9.85046193]
[1769942343222,1.04314146,104.86,104.82,8.76196031]
[1769942343941,10.57912837,104.87,104.83,8.76196031]
[1769942344616,1.04314146,104.85,104.81,19.39119611]
[1769942345014,1.04314146,104.85,104.8,18.30358678]
[1769942345210,33.37502571,104.87,104.79,19.39288755]
[1769942345211,1.04314146,104.83,104.79,19.39288755]
[1769942345733,1.04314146,104.83,104.8,8.76196031]
[1769942345925,1.04314146,104.82,104.78,8.76196031]
[1769942346123,1.04314146,104.82,104.78,19.39361685]
[1769942346526,10.58337213,104.82,104.78,19.39361685]
[1769942346740,1.04314146,104.82,104.78,19.39361685]
[1769942347326,10.58345718,104.82,104.79,8.76196031]
[1769942347531,10.58345718,104.82,104.78,19.39361685]
[1769942349037,10.58345718,104.82,104.78,9.85046193]
[1769942349935,1.04314146,104.82,104.79,8.76196031]
[1769942350429,10.58859635,104.83,104.79,9.8379161]
[1769942351132,19.34920389,104.84,104.8,1.07595579]
[1769942351635,19.34920389,104.84,104.76,19.38303463]
[1769942351636,1.04889944,104.8,104.76,19.38303463]
[1769942351841,9.81085975,104.83,104.78,9.8379161]
[1769942352029,9.81085975,104.83,104.78,19.38169545]
[1769942352738,1.04889944,104.83,104.79,19.38080453]
[1769942352921,1.04889944,104.83,104.8,9.8379161]
[1769942353119,10.58724358,104.84,104.8,9.8379161]
[1769942353436,9.53834414,104.84,104.81,1.07595579]
[1769942353625,10.58675084,104.85,104.81,9.8379161]
[1769942354832,1.04889944,104.84,104.8,9.8379161]
[1769942355027,1.04889944,104.82,104.78,19.38152615]
[1769942355340,18.30121434,104.83,104.76,19.383173]
[1769942355341,1.04889944,104.8,104.76,19.383173]
[1769942356433,1.04889944,104.8,104.77,1.07595579]
[1769942356635,1.04889944,104.82,104.78,9.8379161]
[1769942357349,10.58950717,104.82,104.78,9.8379161]
[1769942359329,43.2018777,104.82,104.78,1.07595579]
[1769942360722,19.35146748,104.82,104.78,1.07595579]
[1769942361124,10.58950717,104.82,104.78,1.07595579]
[1769942361429,10.58854409,104.83,104.79,1.07595579]
[1769942361620,10.58854409,104.83,104.79,9.8379161]
[1769942362327,10.58854409,104.83,104.8,1.07595579]
[1769942362737,1.04889944,104.83,104.8,1.07595579]
[1769942363220,1.04889944,104.85,104.82,1.07595579]
[1769942364158,18.29899327,104.86,104.82,19.3779833]
[1769942364159,10.5859324,104.86,104.82,19.3779833]
[1769942364448,1.04889944,104.83,104.79,9.8379161]
[1769942364745,1.04889944,104.83,104.79,19.38081136]
[1769942364929,1.04889944,104.83,104.8,1.07595579]
[1769942365131,9.81085975,104.83,104.8,1.07595579]
[1769942365651,1.04889944,104.83,104.8,1.07595579]
[1769942365826,19.34990521,104.84,104.8,1.07595579]
[1769942366028,10.5879449,104.84,104.8,19.3794494]
[1769942366340,9.53904546,104.84,104.81,1.07595579]
[1769942366741,19.34866595,104.85,104.81,1.07595579]
[1769942367047,10.58670564,104.85,104.81,9.8379161]
[1769942367947,10.58670564,104.85,104.81,19.37859538]
[1769942368829,19.34866595,104.85,104.81,19.37859538]
[1769942369234,9.53686975,104.86,104.82,19.37801073]
[1769942369449,19.3477295,104.86,104.82,1.07595579]
[1769942369751,9.81085975,104.85,104.81,1.07595579]
[1769942370246,1.04889944,104.83,104.78,1.07595579]
[1769942370453,8.76196031,104.82,104.79,1.07595579]
[1769942370641,9.81085975,104.83,104.79,10.61833971]
[1769942370953,9.81085975,104.85,104.81,1.07595579]
[1769942371346,10.58675785,104.85,104.81,19.37897471]
[1769942371548,1.04889944,104.85,104.81,18.30301892]
[1769942371748,1.04889944,104.85,104.81,19.37897471]
[1769942371949,1.04889944,104.85,104.82,1.07595579]
[1769942372256,10.58654585,104.85,104.82,1.07595579]
[1769942372437,1.04889944,104.83,104.79,9.8379161]
[1769942372851,9.81085975,104.82,104.79,1.07595579]
[1769942373151,9.81085975,104.81,104.77,10.62023365]
[1769942373345,18.30266378,104.82,104.78,1.07595579]
[1769942373550,19.35156322,104.82,104.78,1.07595579]
[1769942373742,9.81085975,104.81,104.77,10.62023365]
[1769942374253,1.04889944,104.81,104.78,1.07595579]
[1769942374833,19.35156322,104.82,104.78,1.07595579]
[1769942375638,10.58960291,104.82,104.78,1.07595579]
[1769942375838,19.34735542,104.82,104.78,1.07595579]
[1769942376250,19.34625325,104.83,104.79,1.07595579]
[1769942376450,1.04889944,104.83,104.8,1.07595579]
[1769942377055,9.5387119,104.84,104.81,1.07595579]
[1769942377657,19.32026287,104.84,104.8,1.0304404]
[1769942378146,19.32026287,104.84,104.8,10.5721807]
[1769942380849,10.56251036,104.84,104.81,1.0304404]
[1769942381045,9.5387119,104.84,104.81,1.0304404]
[1769942381256,1.02379846,104.82,104.79,10.573111]
[1769942381456,1.02379846,104.83,104.79,19.33086351]
[1769942381756,1.02379846,104.84,104.8,9.78819291]
[1769942381954,9.78155097,104.84,104.8,1.0304404]
[1769942383261,9.53925403,104.83,104.8,1.0304404]
[1769942383457,19.320805,104.83,104.8,1.0304404]
[1769942383653,10.56305249,104.83,104.8,1.0304404]
[1769942385045,10.56305249,104.83,104.79,1.04985997]
[1769942386361,10.56305249,104.83,104.8,1.04985997]
[1769942387654,9.7859455,104.81,104.77,1.04985997]
[1769942388355,19.32712308,104.81,104.77,10.59414033]
[1769942388760,9.7859455,104.79,104.75,1.04985997]
[1769942388969,9.7859455,104.8,104.76,1.04985997]
[1769942389353,8.75775251,104.79,104.76,1.04985997]
[1769942389644,9.7859455,104.8,104.76,1.04985997]
[1769942390151,9.54117758,104.81,104.77,1.04985997]
[1769942390357,9.7859455,104.8,104.76,1.04985997]
[1769942390760,1.02819299,104.78,104.74,10.59693053]
[1769942391069,8.75775251,104.77,104.74,1.04985997]
[1769942391255,1.02819299,104.77,104.74,1.04985997]
[1769942391450,9.7859455,104.77,104.74,1.04985997]
[1769942392958,8.75775251,104.76,104.74,1.04985997]
[1769942393269,8.75775251,104.76,104.73,1.04985997]
[1769942393466,9.7859455,104.75,104.72,10.59888362]
[1769942394066,9.7859455,104.74,104.71,1.04985997]
[1769942394575,1.02819299,104.75,104.72,1.04985997]
[1769942394865,9.7859455,104.75,104.72,10.5990466]
[1769942397470,9.7859455,104.75,104.71,10.5996658]
[1769942397670,9.7859455,104.75,104.72,9.54915698]
[1769942398154,9.7859455,104.75,104.72,10.59901695]
[1769942400271,9.54567757,104.76,104.72,10.59901695]
[1769942400272,1.02819299,104.76,104.73,1.04985997]
[1769942401482,19.33167895,104.76,104.73,1.04985997]
[1769942402372,1.02819299,104.73,104.7,10.70021491]
[1769942402554,8.75775251,104.73,104.7,10.70021491]
[1769942403166,9.7859455,104.73,104.7,10.70021491]
[1769942403675,4.53669963,104.73,104.7,10.70021491]
[1769942404256,1.02819299,104.73,104.7,10.70021491]
[1769942404671,14.08508851,104.73,104.7,0.1]
[1769942404979,1.02819299,104.72,104.7,0.1]
[1769942405674,4.53669963,104.71,104.67,10.70323662]
[1769942405882,14.08718734,104.71,104.67,10.70323662]
[1769942406074,4.53669963,104.7,104.67,1.14985997]
[1769942406470,1.02819299,104.69,104.67,0.1]
[1769942406778,1.02819299,104.67,104.64,10.60594012]
[1769942407080,4.53669963,104.68,104.64,10.60594012]
[1769942407277,1.06807293,104.7,104.66,0.99784703]
[1769942407463,1.06807293,104.69,104.66,0.99784703]
[1769942407667,1.06807293,104.67,104.63,10.65493004]
[1769942407869,4.57657957,104.68,104.64,10.5542586]
[1769942408271,1.06807293,104.68,104.64,14.06276524]
[1769942408582,4.57657957,104.68,104.64,10.5542586]
[1769942408765,1.06807293,104.68,104.64,10.5542586]
[1769942409084,1.06807293,104.68,104.64,14.06276524]
[1769942409282,4.57657957,104.68,104.64,10.5542586]
[1769942409470,1.06807293,104.68,104.65,0.99784703]
[1769942409969,19.40045329,104.68,104.64,10.5542586]
[1769942410171,1.06807293,104.68,104.64,19.33364154]
[1769942410780,10.62137976,104.68,104.64,19.33364154]
[1769942410984,10.62137976,104.68,104.65,0.99784703]
[1769942411576,1.06807293,104.65,104.63,0.1]
[1769942411777,9.84745587,104.65,104.63,1e-08]
[1769942411980,19.40262038,104.66,104.63,1e-08]
[1769942412165,8.77938294,104.65,104.63,1e-08]
[1769942412374,9.84745587,104.65,104.63,1e-08]
[1769942413877,1.06807293,104.65,104.63,1e-08]
[1769942414183,19.40322601,104.65,104.63,1e-08]
[1769942414381,9.84745587,104.65,104.63,1e-08]
[1769942414881,9.84745587,104.64,104.61,0.99784703]
[1769942415084,1.06807293,104.64,104.61,0.99784703]
[1769942415581,9.84745587,104.65,104.61,19.33629605]
[1769942415783,18.33449159,104.66,104.62,0.99784703]
[1769942415965,1.06807293,104.65,104.62,0.99784703]
[1769942416166,1.06807293,104.65,104.61,19.33629605]
[1769942416567,1.06807293,104.65,104.61,10.55691311]
[1769942416773,9.84745587,104.65,104.61,19.33629605]
[1769942416975,1.06807293,104.65,104.62,9.77722997]
[1769942417189,10.62318158,104.66,104.62,9.77722997]
[1769942417486,9.84745587,104.64,104.6,0.99784703]
[1769942417782,9.84745587,104.64,104.6,19.33741322]
[1769942417985,9.84745587,104.64,104.6,9.77722997]
[1769942418285,9.84745587,104.64,104.6,0.99784703]
[1769942418484,1.06807293,104.63,104.6,0.99784703]
[1769942419786,1.06807293,104.64,104.6,10.55796202]
[1769942419965,19.40418393,104.64,104.6,19.33734496]
[1769942420165,19.40418393,104.64,104.6,10.55796202]
[1769942420387,19.40418393,104.64,104.6,19.33734496]
[1769942420967,1.06807293,104.65,104.62,9.77722997]
[1769942421168,1.06807293,104.64,104.61,8.77938294]
[1769942421369,9.84745587,104.64,104.6,19.33734496]
[1769942421683,9.84745587,104.64,104.6,0.99784703]
[1769942421881,9.84745587,104.62,104.59,0.99784703]
[1769942422086,9.84745587,104.62,104.58,1.09784703]
[1769942422385,9.55570635,104.65,104.58,1.09784703]
[1769942422386,9.84745587,104.61,104.58,1.09784703]
[1769942422591,19.40693302,104.61,104.58,1.09784703]
[1769942422887,19.40693302,104.61,104.58,0.1]
[1769942423382,9.84745587,104.61,104.58,0.1]
[1769942423680,1.06807293,104.63,104.59,9.77722997]
[1769942423983,1.06807293,104.62,104.59,9.77722997]
[1769942424383,1.06807293,104.62,104.6,8.77938294]
[1769942424578,1.06807293,104.63,104.59,9.77722997]
[1769942424786,1.06807293,104.62,104.59,0.99784703]
[1769942425168,1.06807293,104.61,104.58,0.1]
[1769942425370,9.84745587,104.61,104.58,0.1]
[1769942425876,1.06807293,104.6,104.58,0.1]
[1769942427169,10.62894187,104.6,104.58,0.1]
[1769942427575,1.06807293,104.61,104.58,9.87722997]
[1769942427991,25.67344309,104.62,104.59,9.77722997]
[1769942428277,9.55566172,104.65,104.61,9.77722997]
[1769942428501,32.6633797,104.68,104.63,9.77722997]
[1769942428801,9.55417189,104.67,104.63,9.77722997]
[1769942429293,9.55417189,104.67,104.63,0.99784703]
[1769942429501,42.21814449,104.67,104.62,8.77938294]
[1769942429679,42.21814449,104.67,104.59,23.9010739]
[1769942429680,8.77938294,104.65,104.59,10.55854718]
[1769942429887,33.43876155,104.67,104.59,10.55854718]
[1769942429888,8.77938294,104.64,104.59,19.33793012]
[1769942430102,9.75932455,104.64,104.6,0.99784703]
[1769942430475,19.31627574,104.64,104.6,9.77722997]
[1769942430802,0.97998693,104.6,104.56,0.1]
[1769942430974,8.77938294,104.59,104.56,1.09784703]
[1769942431170,9.75936987,104.6,104.56,1.09784703]
[1769942431374,9.75936987,104.59,104.56,1.09784703]
[1769942431995,8.77938294,104.59,104.56,1.09784703]
[1769942432176,9.75941467,104.59,104.56,0.1]
[1769942432384,19.32133842,104.59,104.56,0.1]
[1769942432998,9.75945895,104.6,104.56,1.09784703]
[1769942433173,0.98007601,104.59,104.56,0.1]
[1769942433799,0.9809286,104.6,104.56,1.09784703]
[1769942434118,9.76031154,104.62,104.57,9.77722997]
[1769942434407,0.9809286,104.61,104.57,19.33957909]
[1769942434709,0.9817714,104.64,104.6,0.99784703]
[1769942434900,0.9817714,104.64,104.6,9.77722997]
[1769942435079,0.9817714,104.63,104.58,0.99784703]
[1769942435279,0.9817714,104.63,104.6,0.99784703]
[1769942435480,8.77938294,104.63,104.59,8.77938294]
[1769942435681,8.77938294,104.63,104.58,9.77722997]
[1769942435682,0.98260451,104.62,104.58,9.77722997]
[1769942436694,9.76198745,104.62,104.58,19.33880513]
[1769942437700,19.33117159,104.62,104.58,0.99784703]
[1769942438490,25.75848997,104.63,104.59,9.82461089]
[1769942438694,24.77344309,104.63,104.6,1.03512162]
[1769942438996,34.33102003,104.63,104.6,1.03512162]
[1769942439906,34.33102003,104.63,104.6,9.82461089]
[1769942440285,34.33102003,104.63,104.6,1.03512162]
[1769942440801,34.33102003,104.63,104.6,9.82461089]
[1769942441598,9.55757694,104.63,104.6,9.82461089]
[1769942442103,57.45370722,104.65,104.61,1.03512162]
[1769942442104,43.11930443,104.65,104.61,1.03512162]
[1769942442400,63.19748846,104.66,104.62,9.82461089]
[1769942442401,9.77766371,104.66,104.62,9.82461089]
[1769942442607,0.98817444,104.65,104.62,1.03512162]
[1769942442903,8.78948927,104.66,104.62,9.82461089]
[1769942442904,10.5441216,104.66,104.62,9.82461089]
[1769942443085,19.33361087,104.66,104.62,9.82461089]
[1769942443419,9.77842328,104.65,104.61,9.82461089]
[1769942443594,33.44205936,104.66,104.58,23.90351355]
[1769942443595,0.98968485,104.63,104.59,19.438402]
[1769942445494,10.54717531,104.63,104.59,19.438402]
[1769942446894,10.54717531,104.63,104.6,8.78948927]
[1769942447210,10.54717531,104.63,104.6,9.87753163]
[1769942447400,18.34646677,104.64,104.6,9.87753163]
[1769942447715,9.5569775,104.64,104.6,9.87753163]
[1769942447916,9.5569775,104.64,104.6,19.4374693]
[1769942448128,9.55571573,104.65,104.62,9.87753163]
[1769942448621,9.55571573,104.65,104.62,1.08804236]
[1769942448796,9.55571573,104.65,104.62,9.87753163]
[1769942449121,10.54813457,104.66,104.63,8.78948927]
[1769942449318,10.54813457,104.66,104.63,9.87753163]
[1769942450597,9.55482289,104.66,104.63,9.87753163]
[1769942450827,24.87722657,104.69,104.65,1.08804236]
[1769942451117,15.52540629,104.7,104.67,8.78948927]
[1769942451416,10.54691583,104.7,104.67,8.78948927]
[1769942451708,0.99606602,104.69,104.65,8.78948927]
[1769942451915,0.99606602,104.69,104.65,9.87753163]
[1769942452611,10.54965813,104.68,104.65,1.08804236]
[1769942452810,10.54965813,104.68,104.64,9.87753163]
[1769942453128,10.54965813,104.68,104.65,8.78948927]
[1769942453718,9.55292319,104.68,104.65,9.87753163]
[1769942455492,9.55292319,104.68,104.66,8.78948927]
[1769942455695,9.55292319,104.68,104.65,1.08804236]
[1769942455696,9.55292319,104.68,104.65,9.87753163]
[1769942456021,9.55292319,104.68,104.65,1.08804236]
[1769942456224,34.32636628,104.68,104.65,9.87753163]
[1769942457210,0.9993347,104.67,104.62,1.08804236]
[1769942457413,9.78882397,104.66,104.62,9.87753163]
[1769942458214,9.78882397,104.66,104.62,19.43590954]
[1769942459828,19.3439825,104.66,104.62,19.43590954]
[1769942460203,34.32489986,104.7,104.63,1.08804236]
[1769942460519,1.00120717,104.69,104.66,9.87753163]
[1769942460715,1.00120717,104.69,104.66,1.08804236]
[1769942460915,10.55322896,104.7,104.66,9.87753163]
[1769942461616,10.55048837,104.73,104.69,9.87753163]
[1769942461920,9.79190919,104.72,104.68,1.08804236]
[1769942462301,9.79190919,104.72,104.68,9.87753163]
[1769942462703,1.00241992,104.72,104.68,9.87753163]
[1769942463925,1.00241992,104.72,104.69,9.87753163]
[1769942464226,9.54867132,104.73,104.7,1.08804236]
[1769942464818,9.79367657,104.72,104.68,1.08804236]
[1769942465020,1.0041873,104.7,104.66,19.4318415]
[1769942465208,9.79367657,104.7,104.66,10.64235223]
[1769942465404,9.79367657,104.7,104.66,19.4318415]
[1769942465710,1.0041873,104.7,104.66,19.4318415]
[1769942466729,1.0041873,104.7,104.67,1.08804236]
[1769942467330,10.55680474,104.71,104.67,9.87753163]
[1769942468408,10.55615189,104.72,104.68,9.84445706]
[1769942469130,43.21882679,104.72,104.68,9.84445706]
[1769942469321,43.21882679,104.72,104.68,1.05496779]
[1769942469722,1.0075435,104.69,104.64,19.40064617]
[1769942469925,9.79703277,104.68,104.64,10.6111569]
[1769942470130,1.0075435,104.7,104.65,1.05496779]
[1769942470337,9.79703277,104.69,104.65,1.05496779]
[1769942470629,19.34960728,104.69,104.65,1.05496779]
[1769942471414,10.56011801,104.69,104.65,19.3998372]
[1769942472336,10.55895084,104.7,104.67,1.05496779]
[1769942472512,1.00762517,104.69,104.66,1.05496779]
[1769942472718,1.00762517,104.69,104.65,9.84445706]